bitfinex/quotes_BTCUSD_20250308
["timestamp","ask_amount","ask_price","bid_price","bid_amount"]
[1741431398276,0.25862285,86355.0,86354.0,0.11355528]
[1741431398451,0.25862285,86355.0,86354.0,0.12055528]
[1741431398790,0.0451833,86355.0,86354.0,0.12055528]
[1741431400850,0.0451833,86355.0,86354.0,0.12089508]
[1741431404227,0.243173,86358.0,86354.0,0.12089508]
[1741431404431,0.0297433,86355.0,86354.0,0.12089508]
[1741431404830,0.01158,86355.0,86354.0,0.12089508]
[1741431405733,0.01158,86355.0,86354.0,0.11389508]
[1741431406145,0.01158,86355.0,86354.0,0.12089508]
[1741431406815,0.01158,86355.0,86354.0,0.11389508]
[1741431406946,0.01258,86355.0,86354.0,0.12089508]
[1741431409002,0.03074224,86355.0,86354.0,0.12089508]
[1741431415909,0.01258,86355.0,86354.0,0.10273184]
[1741431418891,0.03074222,86355.0,86354.0,0.10273184]
[1741431425876,0.03074222,86355.0,86354.0,0.0143398]
[1741431434935,0.01916222,86355.0,86354.0,0.0143398]
[1741431435161,0.001,86355.0,86354.0,0.15097774]
[1741431435360,0.001,86355.0,86354.0,0.15143887]
[1741431436621,0.001,86355.0,86354.0,0.16652652]
[1741431437036,0.0011699,86355.0,86354.0,0.48106737]
[1741431437250,0.0011699,86355.0,86354.0,0.47990943]
[1741431438316,0.01932944,86355.0,86354.0,0.47990943]
[1741431438525,0.01832944,86355.0,86354.0,0.46590943]
[1741431438735,0.01832944,86355.0,86354.0,0.47290943]
[1741431438954,0.01832944,86355.0,86354.0,0.47990943]
[1741431440992,0.01832944,86355.0,86354.0,0.75789658]
[1741431441792,0.01832944,86355.0,86354.0,0.76173623]
[1741431441993,0.01832944,86355.0,86354.0,0.75473623]
[1741431442402,0.01832944,86355.0,86354.0,0.76173623]
[1741431442981,0.01832944,86355.0,86354.0,0.76873623]
[1741431443323,0.01832944,86355.0,86354.0,0.76173623]
[1741431443529,0.01832944,86355.0,86354.0,0.76873623]
[1741431445328,0.01832944,86355.0,86354.0,0.79373623]
[1741431450816,0.01909664,86383.0,86374.0,0.011577]
[1741431451031,0.01909664,86383.0,86375.0,0.10999758]
[1741431451032,8.064e-05,86381.0,86375.0,0.10999758]
[1741431451234,0.011576,86380.0,86375.0,0.10999758]
[1741431452614,0.011576,86380.0,86375.0,0.11399758]
[1741431452848,0.011576,86380.0,86375.0,0.12099758]
[1741431454207,0.01815824,86379.0,86375.0,0.12099758]
[1741431455149,0.01815824,86379.0,86375.0,0.11399758]
[1741431455382,0.01815824,86379.0,86375.0,0.10999758]
[1741431455597,0.01815824,86379.0,86378.0,0.011577]
[1741431455777,0.01815824,86379.0,86378.0,0.01273456]
[1741431456765,0.01815824,86379.0,86378.0,0.01673456]
[1741431457599,0.01815824,86379.0,86378.0,0.015577]
[1741431457795,0.01815824,86379.0,86378.0,0.022577]
[1741431459033,0.01815824,86379.0,86378.0,0.011]
[1741431459196,0.01815824,86379.0,86378.0,0.01215758]
[1741431462601,0.01815824,86379.0,86378.0,0.011]
[1741431462750,0.01815824,86379.0,86378.0,0.02373458]
[1741431463170,0.01815824,86379.0,86378.0,0.01215758]
[1741431463728,0.00025044,86381.0,86380.0,0.011576]
[1741431463934,0.00025044,86381.0,86380.0,0.01319446]
[1741431464957,0.00025044,86381.0,86380.0,0.02019446]
[1741431465467,0.00025044,86381.0,86380.0,0.24472946]
[1741431465680,0.00025044,86381.0,86379.0,0.00046113]
[1741431465884,0.00025044,86381.0,86378.0,0.1269]
[1741431465885,0.00025044,86381.0,86380.0,0.00815753]
[1741431466085,0.01182644,86381.0,86380.0,0.00815753]
[1741431466312,0.00025044,86381.0,86380.0,0.01115753]
[1741431466521,0.00025044,86381.0,86380.0,0.02273353]
[1741431466742,0.00025044,86381.0,86380.0,0.01973353]
[1741431467148,0.00025044,86381.0,86380.0,0.01273353]
[1741431467540,0.00025044,86381.0,86380.0,0.08983353]
[1741431467746,0.00025044,86381.0,86380.0,0.13563353]
[1741431468144,0.01840603,86381.0,86380.0,0.13563353]
[1741431468348,0.01840603,86381.0,86380.0,0.14263353]
[1741431469780,0.01840603,86381.0,86380.0,0.14963353]
[1741431473919,0.01840603,86381.0,86380.0,0.14997313]
[1741431484371,0.01840603,86381.0,86380.0,0.07287313]
[1741431487029,0.01840603,86381.0,86380.0,0.02707313]
[1741431489863,0.01840603,86381.0,86380.0,0.02734045]
[1741431490060,0.01840603,86381.0,86380.0,0.02707313]
[1741431490854,0.01840603,86381.0,86380.0,0.02707313]
[1741431492605,0.01377538,86381.0,86380.0,0.02707313]
[1741431493030,0.243084,86390.0,86383.0,0.243101]
[1741431493349,0.011575,86389.0,86383.0,0.243101]
[1741431493812,0.243088,86388.0,86383.0,0.243101]
[1741431494216,0.011575,86389.0,86384.0,0.011576]
[1741431494440,0.011575,86389.0,86385.0,0.1088]
[1741431494650,0.243078,86392.0,86385.0,0.1088]
[1741431494827,0.011574,86396.0,86390.0,0.243083]
[1741431494982,0.26217758,86398.0,86392.0,0.011575]
[1741431495163,0.26221684,86398.0,86392.0,0.011575]
[1741431496055,0.011574,86397.0,86392.0,0.011575]
[1741431496255,0.011575,86392.0,86385.0,0.120376]
[1741431496432,0.011575,86392.0,86386.0,0.011575]
[1741431497476,0.011574,86396.0,86391.0,0.231505]
[1741431497700,0.01815556,86391.0,86390.0,0.011575]
[1741431498482,0.01815556,86391.0,86388.0,0.243088]
[1741431499393,0.08305564,86393.0,86388.0,0.243088]
[1741431499708,0.08305564,86393.0,86391.0,0.007]
[1741431499908,0.01815558,86392.0,86391.0,0.007]
[1741431500210,0.01815558,86392.0,86388.0,0.231513]
[1741431500350,0.01815558,86392.0,86388.0,0.238513]
[1741431500547,0.01815558,86392.0,86388.0,0.242513]
[1741431500758,0.01815558,86392.0,86390.0,0.243082]
[1741431500964,0.01815558,86392.0,86388.0,0.235513]
[1741431501167,0.01815558,86392.0,86391.0,0.007]
[1741431502410,0.02973058,86392.0,86391.0,0.004]
[1741431502784,0.011575,86392.0,86391.0,0.004]
[1741431503977,0.011575,86392.0,86391.0,0.011]
[1741431505846,0.02973052,86392.0,86391.0,0.011]
[1741431510180,0.01815552,86392.0,86391.0,0.011]
[1741431513832,0.01915484,86398.0,86391.0,0.25408]
[1741431514295,0.0181559,86430.0,86391.0,0.25408]
[1741431514559,0.243055,86400.0,86391.0,0.25408]
[1741431514792,0.243055,86400.0,86393.0,0.011575]
[1741431515038,0.011574,86399.0,86393.0,0.243075]
[1741431515253,0.24306,86398.0,86391.0,0.25408]
[1741431515719,0.24306,86398.0,86391.0,0.24708]
[1741431516140,0.24306,86398.0,86393.0,0.007]
[1741431516859,0.24306,86398.0,86388.0,0.243088]
[1741431517084,0.011574,86396.0,86390.0,0.011575]
[1741431517314,0.011574,86396.0,86391.0,0.002]
[1741431517522,0.011574,86396.0,86390.0,0.011575]
[1741431517723,0.243068,86396.0,86390.0,0.011575]
[1741431517876,0.243068,86396.0,86393.0,0.002]
[1741431518083,0.011574,86395.0,86390.0,0.011575]
[1741431518610,0.011574,86395.0,86391.0,0.002]
[1741431518787,0.011574,86395.0,86391.0,0.009]
[1741431519184,0.011574,86395.0,86391.0,0.002]
[1741431520076,0.011574,86395.0,86390.0,0.011575]
[1741431520280,0.011574,86395.0,86393.0,0.002]
[1741431520739,0.011574,86396.0,86391.0,0.238505]
[1741431520885,0.011574,86396.0,86391.0,0.25308]
[1741431521136,0.011574,86396.0,86391.0,0.25008]
[1741431521457,0.243068,86395.0,86393.0,0.003]
[1741431521881,0.243068,86395.0,86390.0,0.011575]
[1741431522084,0.243068,86395.0,86390.0,0.018575]
[1741431522684,0.243068,86395.0,86390.0,0.011575]
[1741431522912,0.243068,86395.0,86393.0,0.007]
[1741431523477,0.243068,86395.0,86390.0,0.011575]
[1741431523677,0.243068,86395.0,86390.0,0.018575]
[1741431523878,0.243068,86395.0,86390.0,0.021575]
[1741431524127,0.243068,86395.0,86390.0,0.018575]
[1741431524539,0.243068,86395.0,86393.0,0.003]
[1741431524908,0.243068,86395.0,86391.0,0.0003396]
[1741431525625,0.243068,86395.0,86393.0,0.007]
[1741431525825,0.01273185,86394.0,86391.0,0.0003396]
[1741431526145,0.011575,86392.0,86391.0,0.0003396]
[1741431526352,0.011575,86392.0,86391.0,0.0073396]
[1741431526721,0.011575,86392.0,86391.0,0.0003396]
[1741431527094,0.011575,86392.0,86391.0,0.0073396]
[1741431527642,0.011575,86392.0,86391.0,0.0113396]
[1741431528298,0.011575,86392.0,86391.0,0.0043396]
[1741431528586,0.011575,86392.0,86391.0,0.0113396]
[1741431535457,0.011574,86395.0,86391.0,0.0113396]
[1741431535887,0.011575,86392.0,86391.0,0.0113396]
[1741431536308,0.011575,86393.0,86391.0,0.0043396]
[1741431536506,0.243077,86392.0,86391.0,0.0043396]
[1741431536867,0.011575,86393.0,86391.0,0.0043396]
[1741431537272,0.011575,86393.0,86391.0,0.0003396]
[1741431537494,0.011575,86393.0,86391.0,0.0033396]
[1741431537849,0.011575,86393.0,86391.0,0.0073396]
[1741431538240,0.011575,86392.0,86391.0,0.0033396]
[1741431538658,0.011575,86392.0,86391.0,0.0103396]
[1741431539067,0.011575,86392.0,86391.0,0.0073396]
[1741431539284,0.011575,86392.0,86391.0,0.0003396]
[1741431539450,0.011575,86392.0,86391.0,0.0073396]
[1741431540379,0.011575,86392.0,86391.0,0.0113396]
[1741431544744,0.231502,86392.0,86391.0,0.0113396]
[1741431545401,0.243077,86392.0,86391.0,0.0113396]
[1741431545710,0.011575,86392.0,86391.0,0.0113396]
[1741431545858,0.0001698,86396.0,86391.0,0.0113396]
[1741431546059,0.011574,86394.0,86391.0,0.0113396]
[1741431547067,0.011574,86395.0,86391.0,0.0113396]
[1741431547460,0.011574,86394.0,86391.0,0.0113396]
[1741431547740,0.243072,86394.0,86391.0,0.0073396]
[1741431547911,0.011575,86392.0,86391.0,0.0023396]
[1741431548324,0.011575,86392.0,86391.0,0.0073396]
[1741431548521,0.011575,86392.0,86391.0,0.0103396]
[1741431548770,0.011575,86392.0,86391.0,0.0033396]
[1741431548916,0.011575,86392.0,86391.0,0.0003396]
[1741431549154,0.011575,86392.0,86391.0,0.0113396]
[1741431555280,0.138875,86392.0,86391.0,0.0113396]
[1741431555485,0.28340012,86392.0,86391.0,0.0113396]
[1741431555695,0.28224227,86392.0,86391.0,0.0113396]
[1741431558693,0.48224227,86392.0,86391.0,0.0113396]
[1741431559560,0.48224227,86392.0,86391.0,0.0003396]
[1741431559989,0.48224227,86392.0,86391.0,0.0093396]
[1741431560738,0.28224227,86392.0,86391.0,0.0093396]
[1741431564021,0.15494227,86392.0,86391.0,0.0093396]
[1741431564251,0.15610012,86392.0,86391.0,0.0093396]
[1741431567286,0.12149285,86392.0,86391.0,0.0093396]
[1741431569238,0.01273285,86392.0,86391.0,0.0093396]
[1741431583423,0.04730662,86392.0,86391.0,0.0093396]
[1741431584224,0.24423485,86392.0,86391.0,0.0093396]
[1741431584427,0.243077,86392.0,86391.0,0.0093396]
[1741431584689,0.27765665,86392.0,86391.0,0.0093396]
[1741431602094,0.38186541,86392.0,86391.0,0.0093396]
[1741431605559,0.63435819,86392.0,86391.0,0.0093396]
[1741431609942,0.243105,86382.0,86381.0,0.0003396]
[1741431610146,0.27768465,86382.0,86381.0,0.0003396]
[1741431610564,0.53017743,86382.0,86381.0,0.0003396]
[1741431610973,1.01496743,86382.0,86381.0,0.0073396]
[1741431611486,1.01496743,86382.0,86381.0,0.0113396]
[1741431611756,1.01496743,86382.0,86381.0,0.0043396]
[1741431611933,1.01496743,86382.0,86381.0,0.0113396]
[1741431612120,0.95620143,86382.0,86381.0,0.0113396]
[1741431612373,0.95620143,86382.0,86381.0,0.0073396]
[1741431612585,0.95620143,86382.0,86381.0,0.0033396]
[1741431613251,0.85657343,86382.0,86381.0,0.0033396]
[1741431613863,0.86621519,86382.0,86381.0,0.0053396]
[1741431614070,0.80398819,86382.0,86381.0,0.0053396]
[1741431614484,0.80398819,86382.0,86381.0,0.0023396]
[1741431614689,0.80298819,86382.0,86381.0,0.0013396]
[1741431616125,0.80298819,86382.0,86381.0,0.0003396]
[1741431617293,0.72493419,86382.0,86381.0,0.0003396]
[1741431620067,0.53881919,86382.0,86381.0,0.0003396]
[1741431620267,0.64757919,86382.0,86381.0,0.0003396]
[1741431620467,0.61299954,86382.0,86381.0,0.0003396]
[1741431620673,0.6475558,86382.0,86381.0,0.0003396]
[1741431621214,0.5387958,86382.0,86381.0,0.0003396]
[1741431621391,0.50423954,86382.0,86381.0,0.0003396]
[1741431621749,0.50423954,86382.0,86381.0,0.0488396]
[1741431622809,0.19323883,86382.0,86381.0,0.0488396]
[1741431623042,0.20481483,86382.0,86381.0,0.0488396]
[1741431623717,0.43634383,86382.0,86381.0,0.0488396]
[1741431625100,0.43634383,86382.0,86381.0,0.0003396]
[1741431626493,0.25174676,86382.0,86381.0,0.0003396]
[1741431634770,0.40032905,86391.0,86381.0,0.0779396]
[1741431634950,0.40032905,86391.0,86386.0,0.089175]
[1741431634951,0.00021469,86391.0,86386.0,0.089175]
[1741431635100,0.00021469,86391.0,86381.0,0.0003396]
[1741431635101,0.011576,86382.0,86381.0,0.0003396]
[1741431635301,0.243145,86368.0,86365.0,0.0776]
[1741431635507,0.011579,86361.0,86360.0,0.0776]
[1741431635714,0.01273685,86361.0,86360.0,0.0776]
[1741431637073,0.01278161,86361.0,86360.0,0.0776]
[1741431637275,0.028037,86361.0,86360.0,0.0776]
[1741431639519,0.028037,86361.0,86360.0,0.0836]
[1741431641468,0.028037,86361.0,86360.0,0.0776]
[1741431641653,0.028037,86361.0,86360.0,0.0826]
[1741431644257,0.028037,86361.0,86360.0,0.0829398]
[1741431646366,0.028037,86361.0,86360.0,0.0779398]
[1741431647295,0.22729769,86365.0,86360.0,0.0003398]
[1741431647505,0.011579,86361.0,86360.0,0.00042044]
[1741431647943,0.011579,86361.0,86360.0,0.00442044]
[1741431648149,0.011579,86361.0,86360.0,0.00042044]
[1741431648566,0.011579,86361.0,86360.0,0.00142044]
[1741431648771,0.02681408,86361.0,86360.0,0.00042044]
[1741431648987,0.011579,86361.0,86360.0,0.00042044]
[1741431651736,0.02726289,86361.0,86360.0,0.00042044]
[1741431651967,0.011579,86361.0,86360.0,0.00042044]
[1741431655125,0.02713071,86361.0,86360.0,0.00042044]
[1741431655435,0.011579,86361.0,86360.0,0.00042044]
[1741431656502,0.012579,86361.0,86360.0,0.00042044]
[1741431657511,0.04716216,86361.0,86360.0,0.00042044]
[1741431659381,0.24716216,86361.0,86360.0,0.00042044]
[1741431659925,0.26241568,86361.0,86360.0,0.00042044]
[1741431664519,0.65745653,86361.0,86360.0,4.4e-07]
[1741431664928,0.8420536,86361.0,86360.0,4.4e-07]
[1741431666067,0.8410536,86361.0,86360.0,4.4e-07]
[1741431666662,0.8460536,86361.0,86360.0,4.4e-07]
[1741431667267,0.8410536,86361.0,86360.0,4.4e-07]
[1741431667696,0.7645536,86361.0,86360.0,4.4e-07]
[1741431669542,0.75001275,86361.0,86360.0,4.4e-07]
[1741431669935,0.65881275,86361.0,86360.0,4.4e-07]
[1741431670569,0.65881275,86361.0,86360.0,0.00034024]
[1741431671989,0.35881275,86361.0,86360.0,0.00034024]
[1741431672700,0.46293724,86361.0,86360.0,0.00034024]
[1741431674202,0.35413724,86361.0,86360.0,0.12484024]
[1741431674345,0.30797508,86361.0,86360.0,0.12484024]
[1741431674547,0.55114008,86361.0,86360.0,0.12484024]
[1741431676926,0.36654301,86361.0,86360.0,0.12484024]
[1741431677497,0.3650701,86361.0,86360.0,0.12484024]
[1741431677708,0.26094561,86361.0,86360.0,0.12484024]
[1741431678813,0.01778061,86361.0,86360.0,0.12484024]
[1741431679050,0.01378061,86361.0,86360.0,0.12484024]
[1741431679466,0.002,86361.0,86360.0,0.12484024]
[1741431679905,0.002,86361.0,86360.0,0.13641924]
[1741431680766,0.0001699,86365.0,86364.0,0.011578]
[1741431680975,0.0001699,86365.0,86364.0,0.367655]
[1741431681464,0.0001699,86365.0,86364.0,0.1245]
[1741431682232,0.0001699,86365.0,86364.0,0.1256578]
[1741431682471,0.0001699,86365.0,86364.0,0.1372358]
[1741431683530,0.0001699,86365.0,86364.0,0.1392358]
[1741431688428,0.0001699,86365.0,86364.0,0.1276578]
[1741431690230,0.0001699,86365.0,86364.0,0.1265]
[1741431691271,0.0117479,86365.0,86364.0,0.1265]
[1741431699142,0.0001699,86365.0,86364.0,0.1265]
[1741431699365,0.0117479,86365.0,86364.0,0.1265]
[1741431699951,0.0001699,86365.0,86364.0,0.1265]
[1741431700341,0.0117479,86365.0,86364.0,0.1265]
[1741431705500,0.0117479,86365.0,86364.0,0.002]
[1741431708887,0.011579,86362.0,86361.0,0.0003398]
[1741431710208,0.011579,86362.0,86361.0,0.0033398]
[1741431711685,0.0117479,86365.0,86361.0,0.0033398]
[1741431711923,0.011578,86364.0,86361.0,0.0033398]
[1741431712103,0.243157,86364.0,86361.0,0.0033398]
[1741431712327,0.011578,86364.0,86361.0,0.0033398]
[1741431712490,0.0001699,86365.0,86362.0,0.0792]
[1741431712698,0.0117479,86365.0,86362.0,0.0792]
[1741431714403,0.011579,86363.0,86362.0,0.0792]
[1741431714612,0.0117479,86365.0,86362.0,0.0792]
[1741431715032,0.011579,86363.0,86362.0,0.0792]
[1741431715661,0.011579,86363.0,86362.0,0.002]
[1741431715825,0.243162,86362.0,86361.0,0.0003398]
[1741431717062,0.243162,86362.0,86361.0,0.0033398]
[1741431719746,0.27779946,86362.0,86361.0,0.0033398]
[1741431723129,0.38192395,86362.0,86361.0,0.0033398]
[1741431724567,0.68192395,86362.0,86361.0,0.0033398]
[1741431727023,0.311579,86361.0,86360.0,2.4e-07]
[1741431727228,0.440279,86361.0,86360.0,2.4e-07]
[1741431727448,0.47491646,86361.0,86360.0,2.4e-07]
[1741431729147,0.48945731,86361.0,86360.0,2.4e-07]
[1741431729385,0.48945731,86361.0,86331.0,0.0004]
[1741431729386,0.243217,86342.0,86331.0,0.0004]
[1741431729578,0.351977,86342.0,86331.0,0.0004]
[1741431729745,0.351977,86342.0,86341.0,0.00111614]
[1741431731395,0.06079114,86342.0,86341.0,0.00111614]
[1741431731605,0.07237214,86342.0,86341.0,0.00111614]
[1741431731805,0.07237214,86342.0,86341.0,0.00211614]
[1741431732668,0.30400814,86342.0,86341.0,0.00211614]
[1741431735322,0.31274041,86342.0,86341.0,0.00211614]
[1741431735601,0.31274041,86342.0,86341.0,0.00111614]
[1741431743539,0.39064041,86342.0,86341.0,0.00111614]
[1741431743736,0.69064041,86342.0,86341.0,0.00145594]
[1741431744131,0.69081031,86342.0,86341.0,0.00145594]
[1741431744498,0.61291031,86342.0,86341.0,0.00145594]
[1741431745926,0.61491031,86342.0,86341.0,0.00145594]
[1741431748144,0.79950738,86342.0,86341.0,0.00145594]
[1741431750477,0.83406264,86342.0,86341.0,0.00145594]
[1741431750895,0.79950738,86342.0,86341.0,0.00145594]
[1741431751731,0.83407347,86342.0,86341.0,0.00145594]
[1741431756690,1.20994147,86342.0,86341.0,0.00145594]
[1741431761427,1.20994147,86342.0,86340.0,9.4e-07]
[1741431761428,0.311581,86341.0,86340.0,9.4e-07]
[1741431761757,0.36068794,86341.0,86340.0,9.4e-07]
[1741431763296,0.36268794,86341.0,86340.0,9.4e-07]
[1741431764631,0.543246,86332.0,86331.0,1e-06]
[1741431764842,1.69901301,86332.0,86331.0,1e-06]
[1741431765053,3.53848101,86332.0,86331.0,1e-06]
[1741431765251,2.60268301,86332.0,86331.0,1e-06]
[1741431765423,2.49327601,86332.0,86331.0,1e-06]
[1741431765776,0.243274,86322.0,86321.0,0.001]
[1741431765976,0.53675107,86322.0,86321.0,0.001]
[1741431766176,0.57131716,86322.0,86321.0,0.001]
[1741431766593,0.58893217,86322.0,86321.0,0.001]
[1741431767970,0.58893217,86322.0,86321.0,0.0013398]
[1741431771149,0.58893217,86322.0,86321.0,0.1307398]
[1741431771442,0.55444608,86322.0,86321.0,0.1307398]
[1741431775078,0.36984901,86322.0,86321.0,0.1307398]
[1741431775280,0.36984901,86322.0,86321.0,0.0477398]
[1741431775837,0.47415554,86322.0,86321.0,0.0477398]
[1741431776435,0.47415554,86322.0,86321.0,0.0013398]
[1741431776436,0.50878828,86322.0,86321.0,0.0013398]
[1741431780562,0.40448175,86322.0,86321.0,0.0013398]
[1741431781660,0.40448175,86322.0,86321.0,0.00138456]
[1741431783094,0.11128915,86322.0,86321.0,0.00138456]
[1741431783297,0.35456315,86322.0,86321.0,0.00138456]
[1741431784434,0.65456315,86322.0,86321.0,0.00138456]
[1741431786792,0.83916022,86322.0,86321.0,0.00138456]
[1741431793068,0.87399638,86322.0,86321.0,0.00138456]
[1741431797549,0.87399638,86322.0,86321.0,0.08298456]
[1741431798302,0.87389638,86322.0,86321.0,0.08298456]
[1741431798753,0.87389638,86322.0,86321.0,0.00138456]
[1741431809947,0.87360677,86322.0,86321.0,0.00138456]
[1741431815267,0.543302,86312.0,86311.0,0.0004]
[1741431815434,1.53872126,86312.0,86311.0,0.00078778]
[1741431815643,1.62858026,86312.0,86311.0,0.00078778]
[1741431816258,1.62858026,86312.0,86296.0,0.0457]
[1741431816259,0.011587,86297.0,86296.0,0.0457]
[1741431816464,0.011587,86297.0,86292.0,0.0765]
[1741431816465,0.011588,86295.0,86292.0,0.0765]
[1741431816675,0.19618507,86295.0,86294.0,0.00872925]
[1741431816875,0.23085133,86295.0,86294.0,0.00872925]
[1741431819807,0.32829822,86297.0,86294.0,0.00872925]
[1741431820860,0.011588,86295.0,86294.0,0.00872925]
[1741431821750,0.011588,86292.0,86291.0,2.5e-07]
[1741431821960,0.011588,86292.0,86291.0,8.549e-05]
[1741431823749,0.011588,86292.0,86291.0,0.08018549]
[1741431826423,0.420428,86292.0,86291.0,0.08018549]
[1741431827218,0.231765,86294.0,86291.0,0.08018549]
[1741431827470,0.011588,86292.0,86291.0,0.08018549]
[1741431827668,0.011588,86292.0,86291.0,0.06200639]
[1741431828943,0.011588,86292.0,86291.0,0.06234619]
[1741431830766,0.02976659,86292.0,86291.0,0.06234619]
[1741431833372,0.02976659,86292.0,86291.0,0.0003398]
[1741431834746,0.243373,86287.0,86286.0,0.02786035]
[1741431834981,0.243373,86287.0,86286.0,0.02797654]
[1741431837704,0.2615521,86287.0,86286.0,0.02797654]
[1741431838226,0.2615521,86287.0,86286.0,0.00011619]
[1741431840766,0.2615521,86287.0,86286.0,0.00045619]
[1741431841795,0.5615521,86287.0,86286.0,0.00045619]
[1741431844776,0.59585915,86287.0,86286.0,0.00045619]
[1741431850361,0.243415,86272.0,86271.0,0.0819]
[1741431850558,0.27772205,86272.0,86271.0,0.0819]
[1741431850682,0.27772205,86272.0,86271.0,0.08195395]
[1741431851092,0.27772205,86272.0,86271.0,0.00045395]
[1741431853509,0.29590418,86272.0,86271.0,0.00045395]
[1741431854502,0.27772205,86272.0,86271.0,0.00079395]
[1741431854682,0.28628408,86272.0,86271.0,0.00079395]
[1741431856281,0.25197703,86272.0,86271.0,0.00079395]
[1741431856437,0.27373312,86272.0,86271.0,0.00079395]
[1741431857573,0.2919151,86272.0,86271.0,0.00079395]
[1741431859059,0.2919151,86272.0,86271.0,0.07979395]
[1741431866443,0.0600911,86272.0,86271.0,0.07979395]
[1741431867151,0.05152907,86272.0,86271.0,0.07979395]
[1741431870315,0.03334709,86272.0,86271.0,0.06161217]
[1741431870430,0.02175609,86272.0,86271.0,0.06161217]
[1741431870637,0.243413,86273.0,86270.0,0.0484]
[1741431871673,0.243413,86273.0,86244.0,0.0481]
[1741431871674,0.743421,86270.0,86244.0,0.0481]
[1741431871873,0.543443,86262.0,86244.0,0.0481]
[1741431872290,0.57780347,86262.0,86244.0,0.0481]
[1741431872499,0.85950347,86262.0,86261.0,1e-06]
[1741431872724,0.543468,86253.0,86241.0,0.001]
[1741431872931,0.543468,86253.0,86252.0,9.386e-05]
[1741431873107,0.57782847,86253.0,86252.0,9.386e-05]
[1741431873410,0.5960146,86253.0,86252.0,9.386e-05]
[1741431874182,0.57782847,86253.0,86252.0,9.386e-05]
[1741431874703,0.543468,86253.0,86252.0,9.386e-05]
[1741431878624,0.3,86253.0,86252.0,9.386e-05]
[1741431878836,0.00873321,86255.0,86252.0,9.386e-05]
[1741431879043,0.01818463,86253.0,86252.0,0.00043406]
[1741431879254,0.01818463,86253.0,86252.0,0.06042706]
[1741431879673,0.01818463,86253.0,86252.0,0.13902706]
[1741431879828,0.01818463,86253.0,86252.0,0.12743406]
[1741431880582,0.01818463,86253.0,86252.0,0.37206436]
[1741431880842,0.01818463,86253.0,86252.0,0.37090506]
[1741431882928,0.01818463,86253.0,86252.0,0.12743406]
[1741431883145,0.01818463,86253.0,86252.0,0.12859329]
[1741431884479,0.01818463,86253.0,86252.0,0.14018629]
[1741431885448,0.02977763,86253.0,86252.0,0.12743406]
[1741431885654,0.011593,86253.0,86252.0,0.23631406]
[1741431886056,0.011593,86253.0,86252.0,0.10951406]
[1741431887252,0.011592,86259.0,86252.0,0.10951406]
[1741431887370,0.011593,86257.0,86252.0,0.11067332]
[1741431887781,0.011593,86256.0,86252.0,0.11067332]
[1741431888404,0.011593,86255.0,86252.0,0.10951406]
[1741431888630,0.01818402,86256.0,86252.0,0.10951406]
[1741431888826,0.01818402,86256.0,86255.0,0.059593]
[1741431889210,0.01818402,86256.0,86255.0,0.0491592]
[1741431889391,0.01818402,86256.0,86255.0,0.0607522]
[1741431889597,0.01818402,86256.0,86255.0,0.0491592]
[1741431890110,0.01818402,86256.0,86255.0,0.0607522]
[1741431891092,0.01818402,86256.0,86255.0,0.0491592]
[1741431893402,0.01818402,86256.0,86255.0,0.0607522]
[1741431893606,0.01818402,86256.0,86255.0,0.0491592]
[1741431894198,0.01818402,86256.0,86255.0,0.2810292]
[1741431894444,0.01818402,86256.0,86255.0,0.291463]
[1741431894636,0.01818402,86256.0,86255.0,0.27987]
[1741431894820,0.01818402,86256.0,86255.0,0.291463]
[1741431896057,0.01818402,86256.0,86255.0,0.371963]
[1741431896255,0.0001699,86261.0,86255.0,0.291463]
[1741431896436,0.0001699,86261.0,86260.0,0.323949]
[1741431899356,0.01835122,86261.0,86260.0,0.323949]
[1741431899559,0.01835122,86261.0,86260.0,0.38678985]
[1741431899774,0.01835122,86261.0,86260.0,0.664777]
[1741431900395,0.01835122,86261.0,86260.0,0.689777]
[1741431900973,0.01835122,86261.0,86260.0,0.664777]
[1741431901211,0.01835122,86261.0,86260.0,0.689777]
[1741431901593,0.01835122,86261.0,86260.0,0.664777]
[1741431904405,0.01835122,86261.0,86260.0,0.689777]
[1741431907093,0.01835122,86261.0,86260.0,0.714777]
[1741431908339,0.01835122,86261.0,86260.0,1.014777]
[1741431908517,0.0001699,86261.0,86260.0,1.014777]
[1741431911676,0.01834702,86261.0,86260.0,1.53423615]
[1741431912447,0.231767,86294.0,86283.0,0.243383]
[1741431912617,0.011588,86291.0,86284.0,0.11019876]
[1741431912801,0.011589,86288.0,86284.0,0.11019876]
[1741431913005,0.011588,86291.0,86284.0,0.11019876]
[1741431913221,0.011588,86292.0,86285.0,0.011589]
[1741431913424,0.011588,86292.0,86286.0,0.00115875]
[1741431913602,0.00011606,86292.0,86286.0,0.01274775]
[1741431914221,0.00011606,86292.0,86287.0,0.243373]
[1741431914438,0.00011606,86292.0,86288.0,0.00115874]
[1741431915967,0.01170406,86292.0,86288.0,0.00115874]
[1741431917070,0.02988024,86292.0,86288.0,0.00115874]
[1741431918017,0.01846214,86292.0,86291.0,0.011588]
[1741431918908,0.28516602,86306.0,86294.0,0.011588]
[1741431919059,0.011588,86296.0,86295.0,0.10896]
[1741431919687,0.029764,86296.0,86295.0,0.10896]
[1741431922420,0.011588,86296.0,86295.0,0.10896]
[1741431923047,0.011588,86296.0,86288.0,0.00115874]
[1741431923048,0.094288,86296.0,86288.0,0.00115874]
[1741431923270,0.011589,86287.0,86281.0,0.00115878]
[1741431923470,0.011589,86285.0,86282.0,0.10896]
[1741431923919,0.011589,86285.0,86281.0,0.00127484]
[1741431923920,0.011589,86282.0,86281.0,0.00011606]
[1741431924298,0.092089,86282.0,86281.0,0.10907606]
[1741431924532,0.092089,86282.0,86281.0,0.00011606]
[1741431928477,0.11026745,86282.0,86281.0,0.00011606]
[1741431929111,0.11026745,86282.0,86281.0,0.00045566]
[1741431930914,0.01817845,86282.0,86281.0,0.00045566]
[1741431932130,0.560042,86303.0,86293.0,0.243355]
[1741431932131,0.3,86299.0,86293.0,0.243355]
[1741431932328,0.311587,86299.0,86293.0,0.011588]
[1741431932480,0.311587,86299.0,86290.0,0.352362]
[1741431932683,0.011587,86298.0,86290.0,0.109]
[1741431932905,0.011588,86292.0,86290.0,0.109]
[1741431933100,0.011588,86291.0,86290.0,0.109]
[1741431933448,0.011588,86293.0,86290.0,0.109]
[1741431933584,0.011588,86294.0,86290.0,0.109]
[1741431933792,0.011588,86291.0,86290.0,0.109]
[1741431934233,0.011588,86294.0,86290.0,0.109]
[1741431934414,0.011588,86293.0,86290.0,0.109]